lending/lending_fUSD_20251116
["ID","MTS","AMOUNT","RATE_DAILY","PERIOD"]
[394131140,1763310879190,-500.0,0.00021872,2]
[394131141,1763310879200,-270.96,0.000219,2]
[394131142,1763310879211,-5000.0,0.00021918,2]
[394131143,1763310879220,-500.0,0.00021927,2]
[394131144,1763310879230,-500.0,0.00021982,2]
[394131145,1763310879239,-484.05,0.00022,7]
[394131146,1763310879249,-614.4734072,0.00022037,2]
[394131147,1763310879259,-14736.5819098,0.00022082,2]
[394131148,1763310879269,-479.06402154,0.00022096,2]
[394131149,1763310879278,-532.0,0.00022185,2]
[394131150,1763310879288,-532.0,0.00022197,2]
[394131151,1763310879301,-500.0,0.00022255,2]
[394131152,1763310879310,-150.0,0.00022315,2]
[394131153,1763310879320,-150.0,0.00022315,2]
[394131154,1763310879331,-532.0,0.00022402,2]
[394131155,1763310879340,-151.0,0.0002242,2]
[394131156,1763310879350,-151.0,0.0002242,2]
[394131157,1763310879359,-151.0,0.0002242,2]
[394131158,1763310879368,-151.0,0.0002242,2]
[394131159,1763310879378,-198.451936,0.0002242,2]
[394131160,1763310879387,-151.0,0.0002242,2]
[394131161,1763310879399,-151.0,0.0002242,2]
[394131162,1763310879409,-532.0,0.00022428,2]
[394131163,1763310879419,-532.0,0.00022454,2]
[394131164,1763310879429,-202.005094,0.00022475,2]
[394131165,1763310879439,-151.0,0.00022475,2]
[394131166,1763310879448,-151.0,0.00022485,2]
[394131167,1763310879458,-532.0,0.00022533,2]
[394131168,1763310879468,-532.0,0.00022606,2]
[394131169,1763310879478,-532.0,0.00022623,2]
[394131170,1763310879487,-532.0,0.00022686,2]
[394131171,1763310879497,-532.0,0.00022716,2]
[394131172,1763310879506,-151.0,0.00022804,2]
[394131173,1763310879516,-151.0,0.00022804,2]
[394131174,1763310879527,-270.96,0.00022812,2]
[394131175,1763310879536,-1558.26254964,0.00022861,2]
[394131176,1763310879545,-300.0,0.00022878,2]
[394131177,1763310879555,-14736.5819098,0.00022954,2]
[394131178,1763310879565,-1580.90589449,0.00022956,2]
[394131179,1763310879575,-151.0,0.00022981,2]
[394131180,1763310879585,-157.206441,0.00022981,2]
[394131181,1763310879594,-151.0,0.00022981,2]
[394131182,1763310879603,-159.588753,0.00022981,2]
[394131183,1763310879612,-151.0,0.00022981,2]
[394131184,1763310879622,-153.708628,0.00022981,2]
[394131185,1763310879631,-151.0,0.00022981,2]
[394131186,1763310879640,-151.0,0.00022981,2]
[394131187,1763310879652,-163.405208,0.00022981,2]
[394131188,1763310879662,-8997.0,0.00022998,2]
[394131189,1763310879673,-532.0,0.00023006,2]
[394131190,1763310879816,-532.0,0.00023147,2]
[394131191,1763310879827,-532.0,0.00023213,2]
[394131192,1763310879838,-532.0,0.00023336,2]
[394131193,1763310879848,-532.0,0.00023338,2]
[394131194,1763310879858,-300.0,0.00023399,2]
[394131195,1763310879868,-666.0,0.00023399,2]
[394131196,1763310879878,-1000.0,0.000234,2]
[394131197,1763310879888,-532.0,0.00023423,2]
[394131198,1763310879900,-1000.0,0.0002344,2]
[394131199,1763310879910,-532.0,0.00023445,2]
[394131200,1763310879919,-1000.0,0.00023507,7]
[394131201,1763310879929,-1000.0,0.00023507,7]
[394131202,1763310879939,-532.0,0.00023596,2]
[394131203,1763310879954,-270.96,0.00023725,2]
[394131204,1763310879964,-484.05,0.000238,7]
[394131205,1763310879974,-14736.5819098,0.00023827,2]
[394131206,1763310879983,-500.0,0.00023899,2]
[394131207,1763310879992,-532.0,0.00023906,2]
[394131208,1763310880002,-532.0,0.00023929,2]
[394131209,1763310880011,-532.0,0.0002397,2]
[394131210,1763310880022,-156.40103657,0.00023999,2]
[394131211,1763310880031,-532.0,0.00024022,2]
[394131212,1763310880042,-550.22,0.00024164,2]
[394131213,1763310880052,-550.22,0.00024164,2]
[394131214,1763310880062,-550.22,0.00024164,2]
[394131215,1763310880072,-550.22,0.00024164,2]
[394131216,1763310880081,-550.22,0.00024164,2]
[394131217,1763310880091,-550.22,0.00024164,2]
[394131218,1763310880101,-550.22,0.00024164,2]
[394131219,1763310880111,-550.22,0.00024164,2]
[394131220,1763310880120,-550.22,0.00024164,2]
[394131221,1763310880129,-550.22,0.00024164,2]
[394131222,1763310880139,-532.0,0.00024231,2]
[394131223,1763310880151,-532.0,0.00024358,2]
[394131224,1763310880161,-532.0,0.00024393,2]
[394131225,1763310880170,-151.0,0.00024393,7]
[394131226,1763310880183,-151.0,0.00024393,7]
[394131227,1763310880193,-151.0,0.00024393,7]
[394131228,1763310880203,-151.0,0.00024393,7]
[394131229,1763310880212,-151.0,0.00024393,7]
[394131230,1763310880222,-158.393141,0.00024393,7]
[394131231,1763310880232,-199.111985,0.00024393,7]
[394131232,1763310880242,-550.22,0.00024493,2]
[394131233,1763310880252,-550.22,0.00024493,2]
[394131234,1763310880261,-1100.44,0.00024493,2]
[394131235,1763310880270,-550.22,0.00024493,2]
[394131236,1763310880279,-550.22,0.00024493,2]
[394131237,1763310880289,-550.22,0.00024493,2]
[394131238,1763310880299,-550.22,0.00024493,2]
[394131239,1763310880308,-550.22,0.00024493,2]
[394131240,1763310880317,-550.22,0.00024493,2]
[394131241,1763310880327,-153.99,0.00024501,2]
[394131242,1763310880336,-666.0,0.00024573,2]
[394131243,1763310880345,-1599.0,0.00024574,2]
[394131244,1763310880354,-793.0,0.00024574,2]
[394131245,1763310880364,-1275.0,0.00024574,2]
[394131246,1763310880374,-1190.0,0.00024574,2]
[394131247,1763310880384,-907.0,0.00024574,2]
[394131248,1763310880396,-500.0,0.00024599,2]
[394131249,1763310880406,-270.96,0.00024637,2]
[394131250,1763310880415,-1000.0,0.00024658,2]
[394131251,1763310880425,-495.26,0.00024658,2]
[394131252,1763310880435,-151.0,0.00024658,7]
[394131253,1763310880445,-151.0,0.00024658,7]
[394131254,1763310880455,-160.26946119,0.00024698,2]
[394131255,1763310880465,-14736.5819098,0.000247,2]
[394131256,1763310880475,-150.0,0.00024701,2]
[394131257,1763310880484,-150.0,0.00024795,4]
[394131258,1763310880494,-666.0,0.00024799,2]
[394131259,1763310880503,-500.0,0.00024799,2]
[394131260,1763310880513,-500.0,0.00024799,2]
[394131261,1763310880523,-500.0,0.00024799,2]
[394131262,1763310880532,-500.0,0.00024799,2]
[394131263,1763310880542,-500.0,0.00024799,2]
[394131264,1763310880551,-500.0,0.00024799,2]
[394131265,1763310880561,-478.96003305,0.000248,7]
[394131266,1763310880571,-151.0,0.000248,7]
[394131267,1763310880581,-151.0,0.000248,7]
[394131268,1763310880590,-162.727591,0.000248,7]
[394131269,1763310880599,-158.874689,0.000248,7]
[394131270,1763310880608,-280.368315,0.000248,7]
[394131271,1763310880617,-151.0,0.000248,7]
[394131272,1763310880626,-151.0,0.000248,7]
[394131273,1763310880635,-151.0,0.000248,7]
[394131274,1763310880647,-151.0,0.000248,7]
[394131275,1763310880656,-151.0,0.000248,7]
[394131276,1763310880666,-151.0,0.000248,7]
[394131277,1763310880679,-151.0,0.000248,7]
[394131278,1763310880689,-151.0,0.000248,7]
[394131279,1763310880699,-170.963641,0.000248,7]
[394131280,1763310880708,-151.0,0.000248,7]
[394131281,1763310880719,-151.0,0.000248,7]
[394131282,1763310880728,-151.0,0.000248,7]
[394131283,1763310880740,-151.0,0.000248,7]
[394131284,1763310880750,-151.0,0.000248,7]
[394131285,1763310880759,-151.0,0.000248,7]
[394131286,1763310880769,-151.0,0.000248,7]
[394131287,1763310880779,-151.0,0.000248,7]
[394131288,1763310880788,-151.0,0.000248,7]
[394131289,1763310880797,-151.0,0.000248,7]
[394131290,1763310880806,-297.850905,0.000248,7]
[394131291,1763310880816,-151.0,0.000248,7]
[394131292,1763310880826,-297.850905,0.000248,7]
[394131293,1763310880841,-151.0,0.000248,7]
[394131294,1763310880862,-297.850905,0.000248,7]
[394131295,1763310880882,-151.0,0.000248,7]
[394131296,1763310880905,-297.850905,0.000248,7]
[394131297,1763310880920,-151.0,0.000248,7]
[394131298,1763310880942,-160.745587,0.000248,7]
[394131299,1763310880964,-151.0,0.000248,7]
[394131300,1763310880985,-174.145706,0.000248,7]
[394131301,1763310881006,-151.0,0.000248,7]
[394131302,1763310881025,-151.0,0.000248,7]
[394131303,1763310881046,-151.0,0.000248,7]
[394131304,1763310881061,-151.0,0.000248,7]
[394131305,1763310881082,-151.0,0.000248,7]
[394131306,1763310881096,-151.0,0.000248,7]
[394131307,1763310881115,-151.0,0.000248,7]
[394131308,1763310881129,-239.761031,0.000248,7]
[394131309,1763310881148,-151.0,0.000248,7]
[394131310,1763310881165,-239.761031,0.000248,7]
[394131311,1763310881181,-151.0,0.000248,7]
[394131312,1763310881197,-239.761031,0.000248,7]
[394131313,1763310881213,-239.761031,0.000248,7]
[394131314,1763310881230,-164.04266,0.000248,7]
[394131315,1763310881245,-151.0,0.000248,7]
[394131316,1763310881261,-151.0,0.000248,7]
[394131317,1763310881278,-151.0,0.000248,7]
[394131318,1763310881294,-151.0,0.000248,7]
[394131319,1763310881312,-151.0,0.000248,7]
[394131320,1763310881329,-151.0,0.000248,7]
[394131321,1763310881345,-151.0,0.000248,7]
[394131322,1763310881362,-151.0,0.000248,7]
[394131323,1763310881378,-151.0,0.000248,7]
[394131324,1763310881393,-153.818967,0.000248,7]
[394131325,1763310881415,-151.0,0.000248,7]
[394131326,1763310881426,-151.0,0.000248,7]
[394131327,1763310881436,-151.0,0.000248,7]
[394131328,1763310881446,-151.0,0.000248,7]
[394131329,1763310881456,-151.0,0.000248,7]
[394131330,1763310881465,-151.0,0.000248,7]
[394131331,1763310881475,-625.659022,0.000248,7]
[394131332,1763310881484,-151.0,0.000248,7]
[394131333,1763310881494,-156.089534,0.000248,7]
[394131334,1763310881503,-151.0,0.000248,7]
[394131335,1763310881513,-625.659022,0.000248,7]
[394131336,1763310881522,-244.10011,0.000248,7]
[394131337,1763310881531,-625.659022,0.000248,7]
[394131338,1763310881542,-625.659022,0.000248,7]
[394131339,1763310881551,-151.0,0.000248,7]
[394131340,1763310881560,-151.0,0.000248,7]
[394131341,1763310881570,-151.0,0.000248,7]
[394131342,1763310881580,-151.0,0.000248,7]
[394131343,1763310881590,-151.0,0.000248,7]
[394131344,1763310881599,-151.0,0.000248,7]
[394131345,1763310881609,-151.0,0.000248,7]
[394131346,1763310881618,-151.0,0.000248,7]
[394131347,1763310881628,-151.0,0.000248,7]
[394131348,1763310881637,-151.0,0.000248,7]
[394131349,1763310881651,-151.0,0.000248,7]
[394131350,1763310881663,-151.0,0.000248,7]
[394131351,1763310881674,-151.0,0.000248,7]
[394131352,1763310881685,-153.866856,0.000248,7]
[394131353,1763310881699,-169.198971,0.000248,7]
[394131354,1763310881709,-151.0,0.000248,7]
[394131355,1763310881720,-153.866856,0.000248,7]
[394131356,1763310881731,-153.866856,0.000248,7]
[394131357,1763310881744,-153.866856,0.000248,7]
[394131358,1763310881753,-151.0,0.000248,7]
[394131359,1763310881763,-151.0,0.000248,7]
[394131360,1763310881775,-162.589972,0.000248,7]
[394131361,1763310881786,-151.0,0.000248,7]
[394131362,1763310881796,-151.0,0.000248,7]
[394131363,1763310881806,-151.0,0.000248,7]
[394131364,1763310881815,-151.0,0.000248,7]
[394131365,1763310881825,-151.0,0.000248,7]
[394131366,1763310881835,-151.0,0.000248,7]
[394131367,1763310881845,-151.0,0.000248,7]
[394131368,1763310881855,-151.0,0.000248,7]
[394131369,1763310881865,-151.0,0.000248,7]
[394131370,1763310881876,-603.713558,0.000248,7]
[394131371,1763310881887,-151.0,0.000248,7]
[394131372,1763310881900,-603.713558,0.000248,7]
[394131373,1763310881910,-151.0,0.000248,7]
[394131374,1763310881919,-603.713558,0.000248,7]
[394131375,1763310881929,-603.713558,0.000248,7]
[394131376,1763310881939,-151.0,0.000248,7]
[394131377,1763310881949,-610570.861875,0.000248,3]
[394131378,1763310881959,-151.0,0.000248,7]
[394131379,1763310881968,-151.0,0.000248,7]
[394131380,1763310881978,-151.0,0.000248,7]
[394131381,1763310881988,-151.0,0.000248,7]
[394131382,1763310881998,-151.0,0.000248,7]
[394131383,1763310882008,-153.023954,0.000248,7]
[394131384,1763310882017,-151.0,0.000248,7]
[394131385,1763310882028,-151.0,0.000248,7]
[394131386,1763310882039,-180.69634,0.000248,7]
[394131387,1763310882049,-217.445781,0.000248,7]
[394131388,1763310882060,-151.0,0.000248,7]
[394131389,1763310882069,-151.0,0.000248,7]
[394131390,1763310882080,-151.0,0.000248,7]
[394131391,1763310882090,-151.0,0.000248,7]
[394131392,1763310882099,-162.0971,0.000248,7]
[394131393,1763310882110,-151.0,0.000248,7]
[394131394,1763310882121,-225.770558,0.000248,7]
[394131395,1763310882682,-151.0,0.000248,7]
[394131396,1763310882702,-151.0,0.000248,7]
[394131397,1763310882720,-151.0,0.000248,7]
[394131398,1763310882735,-151.0,0.000248,7]
[394131399,1763310882746,-200.0,0.000248,2]
[394131400,1763310882756,-257.761001,0.000248,7]
[394131401,1763310882766,-170.5392958,0.00024843,3]
[394131402,1763310882775,-151.0,0.0002489,7]
[394131403,1763310882785,-165.666462,0.0002489,7]
[394131404,1763310882795,-151.0,0.0002489,7]
[394131405,1763310882804,-153.633799,0.0002489,7]
[394131406,1763310882813,-151.0,0.0002489,7]
[394131407,1763310882823,-671.123358,0.0002489,7]
[394131408,1763310882832,-671.123358,0.0002489,7]
[394131409,1763310882842,-671.123358,0.0002489,7]
[394131410,1763310882851,-671.123358,0.0002489,7]
[394131411,1763310882860,-151.0,0.0002489,7]
[394131412,1763310882870,-151.0,0.0002489,7]
[394131413,1763310882879,-151.0,0.0002489,7]
[394131414,1763310882889,-181.313631,0.0002489,7]
[394131415,1763310882902,-151.0,0.0002489,7]
[394131416,1763310882912,-151.0,0.0002489,7]
[394131417,1763310882922,-265.593615,0.0002489,7]
[394131418,1763310882931,-151.0,0.0002489,7]
[394131419,1763310882941,-151.0,0.0002489,7]
[394131420,1763310882951,-151.0,0.0002489,7]
[394131421,1763310882960,-2000.0,0.000249,2]
[394131422,1763310882970,-151.0,0.000249,7]
[394131423,1763310882980,-151.0,0.000249,7]
[394131424,1763310882990,-151.0,0.000249,7]
[394131425,1763310883000,-151.0,0.000249,7]
[394131426,1763310883010,-151.0,0.000249,7]
[394131427,1763310883019,-151.0,0.000249,7]
[394131428,1763310883029,-151.0,0.000249,7]
[394131429,1763310883040,-151.0,0.000249,7]
[394131430,1763310883049,-151.0,0.000249,7]
[394131431,1763310883059,-297.850905,0.000249,7]
[394131432,1763310883069,-151.0,0.000249,7]
[394131433,1763310883079,-297.850905,0.000249,7]
[394131434,1763310883089,-151.0,0.000249,7]
[394131435,1763310883100,-297.850905,0.000249,7]
[394131436,1763310883109,-151.0,0.000249,7]
[394131437,1763310883119,-297.850905,0.000249,7]
[394131438,1763310883128,-192.897311,0.000249,7]
[394131439,1763310883138,-151.0,0.000249,7]
[394131440,1763310883151,-151.0,0.000249,7]
[394131441,1763310883160,-151.0,0.000249,7]
[394131442,1763310883170,-151.0,0.000249,7]
[394131443,1763310883179,-281.145595,0.000249,7]
[394131444,1763310883188,-151.0,0.000249,7]
[394131445,1763310883199,-151.0,0.000249,7]
[394131446,1763310883211,-151.0,0.000249,7]
[394131447,1763310883223,-151.0,0.000249,7]
[394131448,1763310883233,-151.0,0.000249,7]
[394131449,1763310883244,-151.0,0.000249,7]
[394131450,1763310883255,-151.0,0.000249,7]
[394131451,1763310883264,-151.0,0.000249,7]
[394131452,1763310883274,-151.0,0.000249,7]
[394131453,1763310883285,-151.0,0.000249,7]
[394131454,1763310883296,-612646.642399,0.000249,3]
[394131455,1763310883305,-400.0,0.000249,9]
[394131456,1763310883316,-400.0,0.000249,9]
[394131457,1763310883326,-151.0,0.000249,7]
[394131458,1763310883336,-151.0,0.000249,7]
[394131459,1763310883345,-151.0,0.000249,7]
[394131460,1763310883355,-151.0,0.000249,7]
[394131461,1763310883364,-151.0,0.000249,7]
[394131462,1763310883374,-151.0,0.000249,7]
[394131463,1763310883385,-151.0,0.000249,7]
[394131464,1763310883397,-151.0,0.000249,7]
[394131465,1763310883406,-151.0,0.000249,7]
[394131466,1763310883416,-151.0,0.000249,7]
[394131467,1763310883426,-151.0,0.000249,7]
[394131468,1763310883437,-500.0,0.00024999,2]
[394131469,1763310883448,-602.25446593,0.00025,2]
[394131470,1763310883458,-205.32476032,0.00025,2]
[394131471,1763310883468,-1765.92228219,0.00025,2]
[394131472,1763310883479,-160.40605547,0.00025,2]
[394131473,1763310883489,-360.0,0.00025,2]
[394131474,1763310883499,-5916.17776993,0.00025,2]
[394131475,1763310883509,-3011.90817493,0.00025,2]
[394131476,1763310883519,-7060.68590776,0.00025,2]
[394131477,1763310883528,-1052.97718914,0.00025,2]
[394131478,1763310883537,-165.49938845,0.00025,2]
[394131479,1763310883547,-2561.63585085,0.00025,2]
[394131480,1763310883556,-500.0,0.00025014,2]
[394131481,1763310883565,-550.22,0.00025315,2]
[394131482,1763310883574,-550.22,0.00025315,2]
[394131483,1763310883583,-416.71,0.00025479,2]
[394131484,1763310883593,-416.71,0.00025479,2]
[394131485,1763310883602,-543.19,0.00025479,2]
[394131486,1763310883612,-416.71,0.00025479,2]
[394131487,1763310883621,-403.85581531,0.000255,3]
[394131488,1763310883630,-479.06402154,0.000255,7]
[394131489,1763310883640,-1000.0,0.00025571,2]
[394131490,1763310883651,-550.22,0.00025644,2]
[394131491,1763310883660,-550.22,0.00025644,2]
[394131492,1763310883670,-550.22,0.00025644,2]
[394131493,1763310883680,-550.22,0.00025644,2]
[394131494,1763310883693,-550.22,0.00025644,2]
[394131495,1763310883702,-550.22,0.00025644,2]
[394131496,1763310883712,-550.22,0.00025644,2]
[394131497,1763310883721,-550.22,0.00025644,2]
[394131498,1763310883732,-550.22,0.00025644,2]
[394131499,1763310883741,-550.22,0.00025644,2]
[394131500,1763310883751,-550.22,0.00025644,2]
[394131501,1763310883761,-550.22,0.00025644,2]
[394131502,1763310883771,-550.22,0.00025644,2]
[394131503,1763310883780,-550.22,0.00025644,2]
[394131504,1763310883790,-550.22,0.00025644,2]
[394131505,1763310883799,-550.22,0.00025644,2]
[394131506,1763310883809,-550.22,0.00025644,2]
[394131507,1763310883818,-550.22,0.00025644,2]
[394131508,1763310883827,-550.22,0.00025644,2]
[394131509,1763310883837,-550.22,0.00025644,2]
[394131510,1763310883847,-550.22,0.00025644,2]
[394131511,1763310883856,-550.22,0.00025644,2]
[394131512,1763310883864,-550.22,0.00025644,2]
[394131513,1763310883874,-550.22,0.00025644,2]
[394131514,1763310883884,-550.22,0.00025644,2]
[394131515,1763310883893,-550.22,0.00025644,2]
[394131516,1763310883904,-550.22,0.00025644,2]
[394131517,1763310883914,-550.22,0.00025644,2]
[394131518,1763310883923,-550.22,0.00025644,2]
[394131519,1763310883933,-1161.58,0.00025644,2]
[394131520,1763310883943,-12971.1811343,0.00025689,2]
[394131521,1763310883952,-1195.95199903,0.000257,2]
[394131522,1763310883962,-484.05,0.000257,7]
[394131523,1763310883972,-416.71,0.00025808,2]
[394131524,1763310883982,-416.71,0.00025808,2]
[394131525,1763310883992,-416.71,0.00025808,2]
[394131526,1763310884001,-416.71,0.00025808,2]
[394131527,1763310884011,-833.42,0.00025808,2]
[394131528,1763310884021,-416.71,0.00025808,2]
[394131529,1763310884031,-416.71,0.00025808,2]
[394131530,1763310884041,-416.71,0.00025808,2]
[394131531,1763310884050,-416.71,0.00025808,2]
[394131532,1763310884059,-416.71,0.00025808,2]
[394131533,1763310884068,-1558.26254964,0.00025869,2]
[394131534,1763310884078,-594.15617168,0.0002599,2]
[394131535,1763310884088,-21167.465986,0.00026,2]
[394131536,1763310884097,-4138.65,0.00026,2]
[394131537,1763310884107,-214.16688223,0.00026,2]
[394131538,1763310884116,-161.20690297,0.00026,2]
[394131539,1763310884126,-479.06402154,0.000263,3]
[394131540,1763310884135,-510.29,0.00026397,7]
[394131541,1763310884144,-550.22,0.00026466,2]
[394131542,1763310884155,-550.22,0.00026466,2]
[394131543,1763310884165,-550.22,0.00026466,2]
[394131544,1763310884174,-550.22,0.00026466,2]
[394131545,1763310884183,-550.22,0.00026466,2]
[394131546,1763310884192,-1100.02,0.00026466,2]
[394131547,1763310884202,-550.22,0.00026466,2]
[394131548,1763310884211,-416.71,0.0002663,2]
[394131549,1763310884221,-416.71,0.0002663,2]
[394131550,1763310884231,-416.71,0.0002663,2]
[394131551,1763310884240,-416.71,0.0002663,2]
[394131552,1763310884249,-416.71,0.0002663,2]
[394131553,1763310884258,-416.71,0.0002663,2]
[394131554,1763310884268,-416.71,0.0002663,2]
[394131555,1763310884277,-416.71,0.0002663,2]
[394131556,1763310884287,-416.71,0.0002663,2]
[394131557,1763310884296,-416.71,0.0002663,2]
[394131558,1763310884305,-416.71,0.0002663,2]
[394131559,1763310884314,-416.71,0.0002663,2]
[394131560,1763310884323,-416.71,0.0002663,2]
[394131561,1763310884333,-416.71,0.0002663,2]
[394131562,1763310884342,-416.71,0.0002663,2]
[394131563,1763310884351,-416.71,0.0002663,2]
[394131564,1763310884360,-416.71,0.0002663,2]
[394131565,1763310884370,-197.4,0.0002663,2]
[394131566,1763310884379,-416.71,0.0002663,2]
[394131567,1763310884388,-1580.90589449,0.00026633,2]
[394131568,1763310884398,-745.48,0.00026676,2]
[394131569,1763310884416,-169.42,0.00026692,2]
[394131570,1763310884426,-250.0,0.00027,2]
[394131571,1763310884435,-1022.6180112,0.00027,2]
[394131572,1763310884444,-530.0,0.00027,2]
[394131573,1763310884453,-266.16,0.00027123,4]
[394131574,1763310884463,-3646.54,0.00027123,2]
[394131575,1763310884472,-500.0,0.00027197,2]
[394131576,1763310884481,-2000.0,0.0002726,2]
[394131577,1763310884491,-2000.0,0.0002726,2]
[394131578,1763310884500,-29561.0,0.00027288,2]
[394131579,1763310884510,-151.0,0.00027288,7]
[394131580,1763310884519,-151.0,0.00027288,7]
[394131581,1763310884528,-151.0,0.00027288,7]
[394131582,1763310884538,-161.529094,0.00027288,7]
[394131583,1763310884547,-395.0,0.000273,2]
[394131584,1763310884556,-150.0,0.00027369,2]
[394131585,1763310884566,-4066.36036739,0.0002739,2]
[394131586,1763310884576,-8033.14064952,0.0002739,2]
[394131587,1763310884587,-152.748032,0.00027397,7]
[394131588,1763310884598,-151.0,0.00027397,7]
[394131589,1763310884608,-151.0,0.00027397,7]
[394131590,1763310884618,-273.663209,0.00027397,7]
[394131591,1763310884627,-150.0,0.00027397,2]
[394131592,1763310884637,-771.74624728,0.00027397,2]
[394131593,1763310884650,-500.0,0.00027397,4]
[394131594,1763310884660,-500.0,0.00027397,4]
[394131595,1763310884671,-500.0,0.00027397,4]
[394131596,1763310884682,-500.0,0.00027397,4]
[394131597,1763310884692,-500.0,0.00027397,4]
[394131598,1763310884702,-500.0,0.00027397,4]
[394131599,1763310884712,-500.0,0.00027397,4]
[394131600,1763310884722,-500.0,0.00027397,4]
[394131601,1763310884731,-1429.89,0.00027397,2]
[394131602,1763310884741,-495.26,0.00027397,2]
[394131603,1763310884752,-300.0,0.00027397,2]
[394131604,1763310884762,-158.3852086,0.00027397,5]
[394131605,1763310884772,-500.19183287,0.00027397,5]
[394131606,1763310884781,-168.1,0.000274,7]
[394131607,1763310884791,-1680.76,0.000274,2]
[394131608,1763310884800,-215.35,0.000274,7]
[394131609,1763310884810,-198.90276558,0.000275,2]
[394131610,1763310884819,-543.35707585,0.000275,2]
[394131611,1763310884829,-1599.0,0.00027574,2]
[394131612,1763310884839,-793.0,0.00027574,2]
[394131613,1763310884849,-1275.0,0.00027574,2]
[394131614,1763310884858,-1190.0,0.00027574,2]
[394131615,1763310884868,-907.0,0.00027574,2]
[394131616,1763310884879,-484.05,0.000276,7]
[394131617,1763310884889,-150.0,0.00027701,2]
[394131618,1763310884899,-393.43076238,0.00027867,7]
[394131619,1763310884909,-779.01032682,0.00027906,2]
[394131620,1763310884918,-160.0,0.00028,2]
[394131621,1763310884927,-863.47,0.0002816,2]
[394131622,1763310884937,-150.0,0.00028219,2]
[394131623,1763310884946,-152.0,0.00028429,3]
[394131624,1763310884956,-1104.16044283,0.00028481,2]
[394131625,1763310884966,-2000.0,0.000286,2]
[394131626,1763310884976,-177.32,0.00028767,2]
[394131627,1763310884986,-177.32,0.00028767,2]
[394131628,1763310884996,-177.32,0.00028767,2]
[394131629,1763310885005,-177.32,0.00028767,2]
[394131630,1763310885015,-177.32,0.00028767,2]
[394131631,1763310885025,-177.32,0.00028767,2]
[394131632,1763310885034,-177.32,0.00028767,2]
[394131633,1763310885044,-177.32,0.00028767,2]
[394131634,1763310885053,-177.32,0.00028767,2]
[394131635,1763310885063,-177.32,0.00028767,2]
[394131636,1763310885072,-177.32,0.00028767,2]
[394131637,1763310885082,-177.32,0.00028767,2]
[394131638,1763310885091,-177.32,0.00028767,2]
[394131639,1763310885101,-177.32,0.00028767,2]